fUST/lending_fUST_20251222
["ID","MTS","AMOUNT","RATE_DAILY","PERIOD"]
[399440737,1766357432464,-146.99382931,7.788e-05,2]
[399440738,1766357432474,-471.1444986,7.81e-05,2]
[399440739,1766357432487,-102.98405777,7.81e-05,2]
[399440740,1766357432497,-348.40990428,7.81e-05,2]
[399440741,1766357432510,-151.59009572,7.81e-05,2]
[399440742,1766357432519,-500.0,7.81e-05,2]
[399440743,1766357432528,-126.89666006,7.81e-05,2]
[399440744,1766357432540,-373.10333994,7.81e-05,2]
[399440745,1766357432549,-500.0,7.81e-05,2]
[399440747,1766357432559,-500.0,7.81e-05,2]
[399440748,1766357432568,-500.0,7.81e-05,2]
[399440749,1766357432580,-500.0,7.81e-05,2]
[399440750,1766357432591,-500.0,7.81e-05,2]
[399440751,1766357432601,-500.0,7.81e-05,2]
[399440752,1766357432610,-500.0,7.81e-05,2]
[399440753,1766357432620,-500.0,7.81e-05,2]
[399440754,1766357432630,-1200.0,7.811e-05,2]
[399440755,1766357432640,-300.0,7.812e-05,2]
[399440756,1766357432650,-300.0,7.812e-05,2]
[399440757,1766357432663,-300.0,7.812e-05,2]
[399440758,1766357432673,-300.0,7.812e-05,2]
[399440759,1766357432683,-619.00070976,7.812e-05,2]
[399440760,1766357432699,-580.99929024,7.812e-05,2]
[399440761,1766357432708,-500.0,7.812e-05,2]
[399440762,1766357432718,-161.54,7.813e-05,2]
[399440763,1766357432729,-151.0,7.813e-05,2]
[399440764,1766357432738,-500.0,7.813e-05,2]
[399440765,1766357432748,-268.59722061,7.813e-05,2]
[399440766,1766357434772,4025.47520406,7.748e-05,2]
[399440767,1766357434802,974.52479594,7.748e-05,2]
[399440786,1766357438575,-13556.69393823,7.81e-05,2]
[399441011,1766357441404,-3e-08,7.81e-05,2]
[399441013,1766357441415,-269.247383,7.81e-05,2]
[399441335,1766357444700,-647.20197421,7.779e-05,2]
[399441428,1766357446661,-247.92802579,7.779e-05,2]
[399441429,1766357446670,-8572.29687421,7.81e-05,2]
[399441430,1766357457187,5000.0,7.748e-05,2]
[399441432,1766357480088,4025.48520406,7.748e-05,2]
[399441433,1766357480142,974.51479594,7.748e-05,2]
[399441434,1766357499567,260.55778535,7.035e-05,2]
[399441435,1766357501026,469.00401364,7.221e-05,2]
[399441436,1766357502302,833.78491313,7.407e-05,2]
[399441437,1766357503543,5000.0,7.748e-05,2]
[399441438,1766357524890,507.0,0.00032877,60]
[399441439,1766357527645,2462.14849194,7.748e-05,2]
[399441440,1766357527673,2537.85150806,7.748e-05,2]
[399441441,1766357545781,169.8,0.00032877,60]
[399441442,1766357550995,5000.0,7.748e-05,2]
[399441443,1766357554774,167.4843,6.813e-05,2]
[399441444,1766357575517,2294.67419194,7.748e-05,2]
[399441445,1766357575545,2705.32580806,7.748e-05,2]
[399441446,1766357590158,335.2996606,7.748e-05,2]
[399441447,1766357597921,5000.0,7.748e-05,2]
[399441448,1766357621288,1959.38453134,7.748e-05,2]
[399441449,1766357621313,3040.61546866,7.748e-05,2]
[399441450,1766357645067,5000.0,7.748e-05,2]
[399441451,1766357667996,1959.39453134,7.748e-05,2]
[399441452,1766357668023,3040.60546866,7.748e-05,2]
[399441453,1766357691882,5000.0,7.748e-05,2]
[399441454,1766357699267,675.91201071,7.036e-05,2]
[399441455,1766357700504,-402.65934723,7.766e-05,2]
[399441456,1766357701132,1216.64161927,7.222e-05,2]
[399441457,1766357702561,-237.9560176,7.766e-05,2]
[399441458,1766357703259,66.85090136,7.409e-05,2]
[399441459,1766357703288,2096.0675329,7.409e-05,2]
[399441460,1766357715436,5000.0,7.748e-05,2]
[399441461,1766357738642,2903.9424671,7.748e-05,2]
[399441462,1766357738670,2096.0575329,7.748e-05,2]
[399441463,1766357761495,5000.0,7.748e-05,2]
[399441464,1766357777887,-491.10955479,7.759e-05,2]
[399441465,1766357780585,-155.47625204,7.759e-05,2]
[399441466,1766357784453,2903.9524671,7.748e-05,2]
[399441467,1766357793984,-248.57427326,7.748e-05,2]
[399441468,1766357798273,-191.37576006,7.748e-05,2]
[399441469,1766357799734,-500.0104944,7.748e-05,2]
[399441470,1766357803058,275.25607574,7.398e-05,2]
[399441471,1766357803352,-214.15,7.748e-05,2]
[399441472,1766357805673,-176.58112331,7.748e-05,2]
[399441473,1766357808735,-231.55702865,7.748e-05,2]
[399441474,1766357814172,-444.43976226,7.748e-05,2]
[399441475,1766357815213,-89.35909096,7.748e-05,2]
[399441476,1766357815238,-183.08157482,7.759e-05,2]
[399441477,1766357822906,-200.0,7.754e-05,2]
[399441478,1766357829716,5000.0,7.748e-05,2]
[399441479,1766357852560,5000.0,7.748e-05,2]
[399441480,1766357868292,-126.87401505,7.754e-05,2]
[399441481,1766357868318,-354.61716898,7.757e-05,2]
[399441482,1766357870390,-433.7885576,7.757e-05,2]
[399441483,1766357876036,0.01,7.748e-05,2]
[399441484,1766357876064,3956.42666523,7.748e-05,2]
[399441485,1766357904487,1738.0,0.00032877,60]
[399441486,1766357942816,-247.48699336,7.755e-05,2]
[399441487,1766357944364,-417.03923141,7.755e-05,2]
[399441488,1766357945129,1739.27493209,0.00032877,62]
[399441490,1766357985770,639.54664075,7.741e-05,2]
[399441494,1766358012464,335.12948919,7.217e-05,2]
[399441495,1766358013310,-432.50356156,7.755e-05,2]
[399441496,1766358014327,383.0051305,7.4e-05,2]
[399441499,1766358032046,4685.90207433,7.708e-05,2]
[399441500,1766358032080,10000.01,7.708e-05,2]
[399441501,1766358032113,10000.01,7.708e-05,2]
[399441502,1766358032146,10000.01,7.708e-05,2]
[399441503,1766358032180,10000.01,7.708e-05,2]
[399441504,1766358032213,10000.01,7.708e-05,2]
[399441505,1766358032247,10000.01,7.708e-05,2]
[399441506,1766358032280,10000.01,7.708e-05,2]
[399441507,1766358032313,10000.01,7.708e-05,2]
[399441508,1766358032779,-398.01602104,7.708e-05,2]
[399441509,1766358034324,-670.79360496,7.708e-05,2]
[399441510,1766358037461,-453.10035493,7.708e-05,2]
[399441511,1766358040846,-358.05747073,7.708e-05,2]
[399441512,1766358043136,-500.0,7.707e-05,2]
[399441513,1766358043159,-248.82035626,7.707e-05,2]
[399441515,1766358045806,-251.17964374,7.707e-05,2]
[399441516,1766358045829,-70.70205279,7.707e-05,2]
[399441517,1766358049894,-157.31393336,7.707e-05,2]
[399441518,1766358053373,-205.54102854,7.707e-05,2]
[399441519,1766358054901,-26.68335645,7.707e-05,2]
[399441520,1766358054924,-193.6769582,7.707e-05,2]
[399441521,1766358056478,-306.3230418,7.707e-05,2]
[399441522,1766358056506,-111.13458355,7.707e-05,2]
[399441526,1766358087166,-5000.0,7.629e-05,2]
[399441527,1766358087558,-300.0,7.706e-05,2]
[399441528,1766358087592,-388.86541645,7.707e-05,2]
[399441529,1766358087627,-500.0,7.707e-05,2]
[399441530,1766358087659,-334.08627936,7.707e-05,2]
[399441531,1766358087694,-500.0,7.707e-05,2]
[399441532,1766358087727,-500.0,7.707e-05,2]
[399441533,1766358087760,-500.0,7.707e-05,2]
[399441534,1766358087793,-500.0,7.707e-05,2]
[399441535,1766358087825,-500.0,7.707e-05,2]
[399441536,1766358087858,-500.0,7.707e-05,2]
[399441537,1766358087890,-358.11800677,7.707e-05,2]
[399441538,1766358088094,-237.87059484,7.707e-05,2]
[399441539,1766358088129,-500.0,7.707e-05,2]
[399441540,1766358088166,-500.0,7.707e-05,2]
[399441541,1766358088200,-500.0,7.707e-05,2]
[399441542,1766358088234,-500.0,7.707e-05,2]
[399441543,1766358088270,-500.0,7.707e-05,2]
[399441544,1766358088306,-500.0,7.707e-05,2]
[399441545,1766358088340,-500.0,7.707e-05,2]
[399441546,1766358088376,-511.01032337,7.707e-05,2]
[399441547,1766358088426,-500.0,7.707e-05,2]
[399441548,1766358088471,-2.24816358,7.707e-05,2]
[399441554,1766358128719,-395.1483531,7.503e-05,2]
[399441555,1766358128755,-382.89376329,7.678e-05,2]
[399441556,1766358128792,-300.0,7.706e-05,2]
[399441557,1766358128837,-497.75183642,7.707e-05,2]
[399441558,1766358128875,-500.0,7.707e-05,2]
[399441559,1766358128915,-500.0,7.707e-05,2]
[399441560,1766358128952,-500.0,7.707e-05,2]
[399441561,1766358128992,-500.0,7.707e-05,2]
[399441562,1766358129034,-500.0,7.707e-05,2]
[399441563,1766358129080,-500.0,7.707e-05,2]
[399441564,1766358129120,-348.42209438,7.707e-05,2]
[399441565,1766358129356,-151.57790562,7.707e-05,2]
[399441566,1766358129392,-500.0,7.707e-05,2]
[399441567,1766358129426,-500.0,7.707e-05,2]
[399441568,1766358129466,-500.0,7.707e-05,2]
[399441569,1766358129504,-500.0,7.707e-05,2]
[399441570,1766358129539,-308.73926326,7.707e-05,2]
[399441571,1766358129578,-500.0,7.707e-05,2]
[399441572,1766358129614,-500.0,7.707e-05,2]
[399441573,1766358129651,-500.0,7.707e-05,2]
[399441574,1766358129689,-500.0,7.707e-05,2]
[399441575,1766358129726,-500.0,7.707e-05,2]
[399441582,1766358186827,-300.0,7.706e-05,2]
[399441583,1766358186864,-500.0,7.707e-05,2]
[399441584,1766358186898,-500.0,7.707e-05,2]
[399441585,1766358186933,-500.0,7.707e-05,2]
[399441586,1766358186968,-500.0,7.707e-05,2]
[399441587,1766358187004,-500.0,7.707e-05,2]
[399441588,1766358187045,-500.0,7.707e-05,2]
[399441589,1766358187079,-500.0,7.707e-05,2]
[399441590,1766358187117,-500.0,7.707e-05,2]
[399441591,1766358187156,-500.0,7.707e-05,2]
[399441597,1766358227897,1463.72667644,7.646e-05,2]
[399441599,1766358236349,5000.0,7.646e-05,2]
[399441600,1766358259273,3536.28332356,7.646e-05,2]
[399441601,1766358259299,1463.71667644,7.646e-05,2]
[399441602,1766358275117,985.69540016,7.646e-05,2]
[399441603,1766358283194,5000.0,7.646e-05,2]
[399441604,1766358300141,2550.5979234,7.646e-05,2]
[399441605,1766358300176,2449.4020766,7.646e-05,2]
[399441606,1766358309284,5000.0,7.646e-05,2]
[399441607,1766358312664,397.23966269,7.067e-05,2]
[399441608,1766358314920,715.03139285,7.285e-05,2]
[399441609,1766358317110,1271.16692062,7.503e-05,2]
[399441610,1766358325588,167.16994724,7.646e-05,2]
[399441611,1766358325617,1351.44378269,7.646e-05,2]
[399441612,1766358333806,5000.0,7.646e-05,2]
[399441613,1766358350201,3648.56621731,7.646e-05,2]
[399441614,1766358350228,1351.43378269,7.646e-05,2]
[399441615,1766358358654,5000.0,7.646e-05,2]
[399441616,1766358382423,3648.57621731,7.646e-05,2]
[399441617,1766358382450,1351.42378269,7.646e-05,2]
[399441618,1766358406032,5000.0,7.646e-05,2]
[399441619,1766358406612,453.52016124,7.004e-05,2]
[399441620,1766358408720,816.33629024,7.159e-05,2]
[399441621,1766358410057,1451.26451598,7.313e-05,2]
[399441622,1766358429945,927.46524985,7.646e-05,2]
[399441623,1766358429975,4072.53475015,7.646e-05,2]
[399441624,1766358453443,5000.0,7.646e-05,2]
[399441625,1766358476795,927.47524985,7.646e-05,2]
[399441626,1766358476822,4072.52475015,7.646e-05,2]
[399441627,1766358500880,5000.0,7.646e-05,2]
[399441628,1766358523752,927.48524985,7.646e-05,2]
[399441629,1766358523787,4072.51475015,7.646e-05,2]
[399441633,1766358548086,5000.0,7.646e-05,2]
[399441635,1766358571469,927.49524985,7.646e-05,2]
[399441636,1766358572974,-371.04981007,7.646e-05,2]
[399441637,1766358576530,-666.0,7.646e-05,2]
[399441638,1766358577623,-217.45762535,7.646e-05,2]
[399441639,1766358588199,287.93778733,7.417e-05,2]
[399441640,1766358616450,-236.25668817,7.005e-05,2]
[399441641,1766358616484,-425.26203871,7.16e-05,2]
[399441642,1766358616517,-756.02140215,7.315e-05,2]
[399441643,1766358616552,-66.39850027,7.646e-05,2]
[399441644,1766358616583,-528.0,7.646e-05,2]
[399441664,1766358631817,-300.0,7.703e-05,2]
[399441667,1766358631827,-300.0,7.703e-05,2]
[399441668,1766358631836,-300.0,7.703e-05,2]
[399441670,1766358631845,-1200.0,7.703e-05,2]
[399441672,1766358631855,-655.06374747,7.703e-05,2]
[399441674,1766358631864,-500.0,7.704e-05,2]
[399441676,1766358631873,-500.0,7.704e-05,2]
[399441678,1766358631883,-465.59866637,7.704e-05,2]
[399441680,1766358631892,-1200.0,7.704e-05,2]
[399441682,1766358631901,-319.88662106,7.704e-05,2]
[399441685,1766358631911,-398.00074638,7.704e-05,2]
[399441687,1766358631921,-500.0,7.704e-05,2]
[399441689,1766358631931,-500.0,7.704e-05,2]
[399441691,1766358631940,-500.0,7.704e-05,2]
[399441693,1766358631950,-500.0,7.704e-05,2]
[399441694,1766358631959,-500.0,7.704e-05,2]
[399441695,1766358631968,-500.0,7.704e-05,2]
[399441696,1766358631977,-500.0,7.704e-05,2]
[399441697,1766358631986,-500.0,7.704e-05,2]
[399441698,1766358631995,-500.0,7.704e-05,2]
[399441699,1766358632004,-500.0,7.704e-05,2]
[399441700,1766358632013,-500.0,7.704e-05,2]
[399441701,1766358632022,-500.0,7.704e-05,2]
[399441702,1766358632031,-500.0,7.704e-05,2]
[399441703,1766358632040,-500.0,7.704e-05,2]
[399441704,1766358632049,-500.0,7.704e-05,2]
[399441705,1766358632058,-500.0,7.704e-05,2]
[399441706,1766358632067,-500.0,7.704e-05,2]
[399441707,1766358632076,-500.0,7.704e-05,2]
[399441708,1766358632085,-500.0,7.704e-05,2]
[399441709,1766358632094,-500.0,7.704e-05,2]
[399441710,1766358632102,-500.0,7.704e-05,2]
[399441711,1766358632111,-500.0,7.704e-05,2]
[399441712,1766358632120,-500.0,7.704e-05,2]
[399441713,1766358632129,-500.0,7.704e-05,2]
[399441714,1766358632138,-500.0,7.704e-05,2]
[399441715,1766358632147,-341.0617748,7.704e-05,2]
[399441716,1766358632156,-500.0,7.704e-05,2]
[399441717,1766358632165,-500.0,7.704e-05,2]
[399441718,1766358632174,-500.0,7.704e-05,2]
[399441719,1766358632183,-500.0,7.704e-05,2]
[399441720,1766358632192,-500.0,7.704e-05,2]
[399441721,1766358632202,-500.0,7.704e-05,2]
[399441722,1766358632211,-500.0,7.704e-05,2]
[399441723,1766358632220,-500.0,7.704e-05,2]
[399441724,1766358632229,-500.0,7.704e-05,2]
[399441725,1766358632238,-500.0,7.704e-05,2]
[399441726,1766358632247,-500.0,7.704e-05,2]
[399441727,1766358632256,-500.0,7.704e-05,2]
[399441728,1766358632265,-374.13586195,7.704e-05,2]
[399441729,1766358632273,-500.0,7.704e-05,2]
[399441730,1766358632282,-500.0,7.704e-05,2]
[399441731,1766358632291,-500.0,7.704e-05,2]
[399441732,1766358632300,-500.0,7.704e-05,2]
[399441734,1766358632310,-500.0,7.704e-05,2]
[399441736,1766358632319,-500.0,7.704e-05,2]
[399441737,1766358632328,-500.0,7.704e-05,2]
[399441739,1766358632337,-500.0,7.704e-05,2]
[399441741,1766358632346,-500.0,7.704e-05,2]
[399441743,1766358632356,-500.0,7.704e-05,2]
[399441745,1766358632367,-500.0,7.704e-05,2]
[399441747,1766358632378,-500.0,7.704e-05,2]
[399441749,1766358632387,-500.0,7.704e-05,2]
[399441751,1766358632396,-500.0,7.704e-05,2]
[399441753,1766358632407,-500.0,7.704e-05,2]
[399441755,1766358632417,-500.0,7.704e-05,2]
[399441757,1766358632427,-500.0,7.704e-05,2]
[399441760,1766358632436,-500.0,7.704e-05,2]
[399441762,1766358632446,-500.0,7.704e-05,2]
[399441764,1766358632456,-500.0,7.704e-05,2]
[399441766,1766358632465,-500.0,7.704e-05,2]
[399441768,1766358632475,-500.0,7.704e-05,2]
[399441769,1766358632484,-500.0,7.704e-05,2]
[399441772,1766358632495,-500.0,7.704e-05,2]
[399441774,1766358632504,-500.0,7.704e-05,2]
[399441775,1766358632513,-500.0,7.704e-05,2]
[399441777,1766358632523,-500.0,7.704e-05,2]
[399441779,1766358632533,-500.0,7.704e-05,2]
[399441781,1766358632542,-500.0,7.704e-05,2]
[399441783,1766358632551,-313.07960864,7.704e-05,2]
[399441786,1766358632564,-186.92039136,7.704e-05,2]
[399441788,1766358632574,-500.0,7.704e-05,2]
[399441790,1766358632582,-500.0,7.704e-05,2]
[399441792,1766358632592,-383.638206,7.704e-05,2]
[399441873,1766358637667,-116.361794,7.704e-05,2]
[399441876,1766358637678,-500.0,7.704e-05,2]
[399441877,1766358637687,-270.3844474,7.704e-05,2]
[399441880,1766358637698,-229.6155526,7.704e-05,2]
[399441882,1766358637707,-500.0,7.704e-05,2]
[399441884,1766358637716,-224.89375375,7.704e-05,2]
[399441886,1766358637727,-275.10624625,7.704e-05,2]
[399441888,1766358637736,-500.0,7.704e-05,2]
[399441890,1766358637747,-233.08706707,7.704e-05,2]
[399442137,1766358640296,-3e-08,7.704e-05,2]
[399442438,1766358679648,-300.0,7.703e-05,2]
[399442439,1766358679682,-417.22718294,7.704e-05,2]
[399442440,1766358679716,-500.0,7.704e-05,2]
[399442441,1766358679749,-434.10617748,7.704e-05,2]
[399442442,1766358679783,-500.0,7.704e-05,2]
[399442443,1766358679815,-500.0,7.704e-05,2]
[399442444,1766358679847,-500.0,7.704e-05,2]
[399442445,1766358679879,-500.0,7.704e-05,2]
[399442446,1766358679911,-500.0,7.704e-05,2]
[399442447,1766358679944,-500.0,7.704e-05,2]
[399442448,1766358679977,-197.34327916,7.704e-05,2]
[399442449,1766358680121,-302.65672084,7.704e-05,2]
[399442450,1766358680154,-500.0,7.704e-05,2]
[399442451,1766358680186,-500.0,7.704e-05,2]
[399442452,1766358680217,-500.0,7.704e-05,2]
[399442453,1766358680246,-499.99,7.704e-05,2]
[399442454,1766358680278,-500.0,7.704e-05,2]
[399442455,1766358680310,-500.0,7.704e-05,2]
[399442456,1766358680340,-500.0,7.704e-05,2]
[399442457,1766358680371,-500.0,7.704e-05,2]
[399442458,1766358680405,-500.0,7.704e-05,2]
[399442459,1766358680496,-500.0,7.704e-05,2]
[399442460,1766358680527,-200.0,7.704e-05,2]
[399442461,1766358680558,-500.0,7.704e-05,2]
[399442462,1766358680590,-500.0,7.704e-05,2]
[399442463,1766358680622,-500.0,7.704e-05,2]
[399442464,1766358680655,-500.0,7.704e-05,2]
[399442465,1766358680686,-500.0,7.704e-05,2]
[399442466,1766358680717,-500.0,7.704e-05,2]
[399442467,1766358680748,-500.0,7.704e-05,2]
[399442468,1766358680779,-500.0,7.704e-05,2]
[399442469,1766358680809,-100.01,7.704e-05,2]
[399442470,1766358680887,-399.99,7.704e-05,2]
[399442471,1766358680918,-500.0,7.704e-05,2]
[399442472,1766358680950,-500.0,7.704e-05,2]
[399442473,1766358680983,-500.0,7.704e-05,2]
[399442474,1766358681016,-500.0,7.704e-05,2]
[399442475,1766358681049,-516.05205277,7.704e-05,2]
[399442476,1766358681080,-333.85814581,7.705e-05,2]
[399442477,1766358691608,500.0,7.704e-05,2]
[399442478,1766358692073,500.0,7.704e-05,2]
[399442479,1766358692121,500.0,7.704e-05,2]
[399442480,1766358692781,-496.66397761,7.708e-05,2]
[399442481,1766358694736,-347.0961284,7.705e-05,2]
[399442484,1766358701870,-652.9038716,7.705e-05,2]
[399442485,1766358701907,-1000.0,7.705e-05,2]
[399442486,1766358701943,-1000.0,7.705e-05,2]
[399442487,1766358701981,-1000.0,7.705e-05,2]
[399442488,1766358702163,-1194.2022568,7.708e-05,2]
[399442489,1766358702204,-10000.01,7.708e-05,2]
[399442490,1766358722858,-226.21579331,7.355e-05,2]
[399442507,1766358748229,-187.31402008,7.355e-05,2]
[399442508,1766358748260,-500.0,7.703e-05,2]
[399442509,1766358748294,-424.65041248,7.703e-05,2]
[399442510,1766358748325,-254.34971986,7.703e-05,2]
[399442511,1766358748359,-500.0,7.703e-05,2]
[399442512,1766358748391,-500.0,7.703e-05,2]
[399442513,1766358748425,-500.0,7.703e-05,2]
[399442514,1766358748457,-500.0,7.703e-05,2]
[399442515,1766358748491,-500.0,7.703e-05,2]
[399442516,1766358748525,-500.0,7.703e-05,2]
[399442517,1766358748556,-500.0,7.703e-05,2]
[399442518,1766358748772,-267.38169516,7.703e-05,2]
[399442520,1766358769153,-232.61830484,7.703e-05,2]
[399442521,1766358769188,-208.23731799,7.703e-05,2]
[399442522,1766358769220,-500.0,7.703e-05,2]
[399442523,1766358769256,-500.0,7.703e-05,2]
[399442524,1766358769289,-500.0,7.703e-05,2]
[399442525,1766358769324,-500.0,7.703e-05,2]
[399442526,1766358769359,-335.87565899,7.703e-05,2]
[399442527,1766358769391,-500.0,7.703e-05,2]
[399442528,1766358769423,-500.0,7.703e-05,2]
[399442529,1766358769454,-500.0,7.703e-05,2]
[399442530,1766358769491,-500.0,7.703e-05,2]
[399442531,1766358769530,-111.50701136,7.703e-05,2]
[399442532,1766358769733,-223.53341364,7.703e-05,2]
[399442533,1766358786808,-500.0,7.703e-05,2]
[399442534,1766358786840,-500.0,7.703e-05,2]
[399442535,1766358786872,-377.03048762,7.703e-05,2]
[399442536,1766358786904,-500.0,7.703e-05,2]
[399442537,1766358786936,-331.74592825,7.704e-05,2]
[399442538,1766358786967,-300.0,7.704e-05,2]
[399442539,1766358786997,-1000.0,7.705e-05,2]
[399442540,1766358787029,-1000.0,7.705e-05,2]
[399442541,1766358787194,-982.45716826,7.705e-05,2]
[399442542,1766358804951,-268.38641153,7.627e-05,2]
[399442543,1766358804982,-1200.0,7.704e-05,2]
[399442544,1766358805013,-17.54283174,7.705e-05,2]
[399442545,1766358805044,-1000.0,7.705e-05,2]
[399442546,1766358805074,-1008.54413718,7.705e-05,2]
[399442547,1766358805184,-3011.0632391,7.708e-05,2]
[399442550,1766358826197,-5000.0,7.63e-05,2]
[399442551,1766358826237,-0.01,7.702e-05,2]
[399442554,1766358850794,-5000.0,7.549e-05,2]
[399442555,1766358850832,-0.01,7.625e-05,2]
[399442557,1766358871501,-3718.30743009,7.549e-05,2]
[399442558,1766358871537,-252.36896019,7.625e-05,2]
[399442559,1766358871573,-499.99,7.702e-05,2]
[399442560,1766358871604,-426.20840656,7.702e-05,2]
[399442561,1766358871698,-206.26040632,7.702e-05,2]
[399442562,1766358917891,-218.86366476,7.062e-05,2]
[399442563,1766358921961,-299.4351489,7.062e-05,2]
[399442564,1766358921987,-33.78181902,7.213e-05,2]
[399442565,1766358925142,-335.2996606,7.213e-05,2]
[399442566,1766358926563,-410.00241731,7.213e-05,2]
[399442567,1766358928529,-153.85396767,7.213e-05,2]
[399442568,1766358928554,-38.48205516,7.365e-05,2]
[399442569,1766358930053,-783.49966263,7.365e-05,2]
[399442570,1766358946356,-211.31776359,7.291e-05,2]
[399442571,1766358949473,-315.30608388,7.291e-05,2]
[399442572,1766358952667,-180.59410517,7.291e-05,2]
[399442573,1766358954756,-272.31389483,7.291e-05,2]
[399442574,1766358957467,-229.07904628,7.291e-05,2]
[399442575,1766358986598,-177.22720902,7.291e-05,2]
[399442576,1766358986631,-836.57448594,7.365e-05,2]
[399442577,1766358986667,-500.0,7.707e-05,2]
[399442578,1766358986699,-378.0448039,7.707e-05,2]
[399442579,1766358986730,-300.0,7.707e-05,2]
[399442580,1766358986763,-1200.0,7.707e-05,2]
[399442581,1766358986802,-300.0,7.707e-05,2]
[399442582,1766358987802,-2616.31700228,7.708e-05,2]
[399442583,1766359016263,186.11574541,6.849e-05,2]
[399442584,1766359023363,-199.93475873,7.322e-05,2]
[399442585,1766359029510,-1736.13480248,7.249e-05,2]
[399442586,1766359029545,-135.073583,7.322e-05,2]
[399442587,1766359029579,-595.5703853,7.558e-05,2]
[399442588,1766359029613,-351.99670047,7.644e-05,2]
[399442589,1766359029651,-300.0,7.707e-05,2]
[399442590,1766359029771,-3762.4590575,7.708e-05,2]
[399442591,1766359053381,-180.23486471,7.012e-05,2]
[399442592,1766359054660,-3641.56437309,7.012e-05,2]
[399442593,1766359054708,-2716.88125382,7.608e-05,2]
[399442594,1766359054839,-10000.01,7.608e-05,2]
[399442595,1766359055195,-10000.01,7.608e-05,2]
[399442596,1766359055368,-10000.01,7.608e-05,2]
[399442597,1766359055445,-250.28111604,7.608e-05,2]
[399442598,1766359055524,-10000.01,7.608e-05,2]
[399442599,1766359055702,-10000.01,7.608e-05,2]
[399442600,1766359055908,-10000.01,7.608e-05,2]
[399442601,1766359056170,-10000.01,7.608e-05,2]
[399442602,1766359056975,-304.62308825,7.608e-05,2]
[399442603,1766359099205,-4488.83998826,7.532e-05,2]
[399442604,1766359112835,-270.70932363,7.57e-05,2]
[399442605,1766359119234,1022.33002348,7.532e-05,2]
[399442606,1766359119263,3977.66997652,7.532e-05,2]
[399442607,1766359120306,-54.40168606,7.57e-05,2]
[399442608,1766359121117,-300.0,7.607e-05,2]
[399442609,1766359121142,-140.03371888,7.607e-05,2]
[399442610,1766359123445,-183.13606312,7.607e-05,2]
[399442611,1766359125433,-207.17384502,7.607e-05,2]
[399442612,1766359129802,-292.39421842,7.607e-05,2]
[399442613,1766359132635,-377.26215456,7.607e-05,2]
[399442614,1766359132665,-168.73784544,7.608e-05,2]
[399442615,1766359133800,-379.78237575,7.608e-05,2]
[399442616,1766359135495,2663.84735934,7.57e-05,2]
[399442617,1766359135757,-378.89501942,7.608e-05,2]
[399442618,1766359137890,-289.10183338,7.608e-05,2]
[399442619,1766359140435,-174.60807543,7.608e-05,2]
[399442620,1766359143340,5000.0,7.57e-05,2]
[399442621,1766359143609,-287.04156794,7.607e-05,2]
[399442622,1766359145752,-12.95843206,7.607e-05,2]
[399442623,1766359145779,-170.28784906,7.608e-05,2]
[399442624,1766359147190,-454.60392502,7.608e-05,2]
[399442625,1766359149970,-885.00088218,7.608e-05,2]
[399442626,1766359151350,614.63136273,7.607e-05,2]
[399442627,1766359153113,-402.03578333,7.608e-05,2]
[399442628,1766359156228,-300.00000566,7.608e-05,2]
[399442629,1766359157659,-517.1763299,7.608e-05,2]
[399442630,1766359158869,430.0,0.00032876,120]
[399442631,1766359159725,-298.32210853,7.608e-05,2]
[399442632,1766359161100,288.60768316,7.607e-05,2]
[399442633,1766359161144,425.05704317,7.607e-05,2]
[399442634,1766359161218,500.0,7.607e-05,2]
[399442635,1766359161991,-385.76599839,7.608e-05,2]
[399442637,1766359165659,-281.81619555,7.608e-05,2]
[399442638,1766359166521,5000.0,7.607e-05,2]
[399442639,1766359167638,-318.18380445,7.608e-05,2]
[399442640,1766359170756,-257.18022174,7.608e-05,2]
[399442641,1766359174098,-351.67810201,7.608e-05,2]
[399442642,1766359176692,-176.18888576,7.608e-05,2]
[399442643,1766359178894,-246.71170381,7.608e-05,2]
[399442644,1766359179822,-507.8765516,7.608e-05,2]
[399442645,1766359180024,-10000.01,7.608e-05,2]
[399442646,1766359180288,-10000.01,7.608e-05,2]
[399442647,1766359180508,-10000.01,7.608e-05,2]
[399442648,1766359180639,-10000.01,7.608e-05,2]
[399442649,1766359180788,-10000.01,7.608e-05,2]